bitfinex/quotes_SOLUSD_20220306
["timestamp","ask_amount","ask_price","bid_price","bid_amount"]
[1646570232355,5.729,87.296,87.241,2.83613526]
[1646570232555,6.26697011,87.295,87.241,2.83613526]
[1646570232756,5.729,87.294,87.241,2.83613526]
[1646570233157,6.26697011,87.293,87.241,2.83613526]
[1646570233557,3.11954161,87.297,87.241,2.83613526]
[1646570233757,6.26697011,87.292,87.241,2.83613526]
[1646570233958,6.26697011,87.298,87.241,2.83613526]
[1646570237864,6.26697011,87.298,87.237,2.83613526]
[1646570239365,11.99597011,87.298,87.237,2.83613526]
[1646570239566,6.26697011,87.297,87.237,2.83613526]
[1646570241269,120.96697011,87.297,87.237,2.83613526]
[1646570241470,114.7,87.295,87.237,2.83613526]
[1646570241670,11.99597011,87.294,87.235,62.00555031]
[1646570242070,3.11954161,87.292,87.235,62.00555031]
[1646570242272,5.729,87.291,87.235,62.00555031]
[1646570242470,0.42650552,87.288,87.235,62.00555031]
[1646570242672,114.7,87.284,87.235,62.00555031]
[1646570242871,0.42650552,87.281,87.235,62.00555031]
[1646570243071,114.7,87.279,87.235,62.00555031]
[1646570243272,114.7,87.277,87.235,62.00555031]
[1646570243471,11.99697011,87.276,87.235,62.00555031]
[1646570243671,6.26697011,87.275,87.235,62.00555031]
[1646570243872,5.73,87.274,87.236,2.83613526]
[1646570244071,61.67587821,87.285,87.236,2.83613526]
[1646570244292,3.11954161,87.292,87.236,2.83613526]
[1646570244896,3.11954161,87.292,87.24,17.1961]
[1646570245093,3.11954161,87.305,87.24,17.1961]
[1646570245296,3.11954161,87.305,87.241,2.83613526]
[1646570245495,3.11954161,87.31,87.241,2.83613526]
[1646570245694,30.16232105,87.315,87.241,2.83613526]
[1646570245695,6.26692105,87.304,87.241,2.83613526]
[1646570245895,3.11954161,87.311,87.241,117.53613526]
[1646570246094,3.11954161,87.313,87.241,117.53613526]
[1646570246296,3.11954161,87.313,87.242,2.83613526]
[1646570246495,3.11954161,87.314,87.242,2.83613526]
[1646570247097,3.11954161,87.314,87.251,50.83040078]
[1646570247298,3.11954161,87.312,87.251,50.83040078]
[1646570247500,6.26692105,87.313,87.252,2.83613526]
[1646570247698,6.26692105,87.311,87.252,2.83613526]
[1646570247898,3.11954161,87.314,87.252,2.83613526]
[1646570248099,3.11954161,87.315,87.252,2.83613526]
[1646570248301,3.11954161,87.314,87.252,2.83613526]
[1646570248500,3.11954161,87.314,87.176,3.03352024]
[1646570248501,3.11954161,87.309,87.239,2.83613526]
[1646570248800,3.11954161,87.3,87.221,2.83613526]
[1646570249001,0.41251824,87.292,87.221,2.83613526]
[1646570249199,3.11954161,87.288,87.211,2.83613526]
[1646570249400,114.7,87.269,87.212,50.05734975]
[1646570249700,114.7,87.267,87.212,50.05734975]
[1646570249902,5.731,87.266,87.212,50.05734975]
[1646570250105,5.731,87.266,87.211,2.83613526]
[1646570250302,114.7,87.259,87.189,19.64728375]
[1646570250502,114.7,87.257,87.189,19.64728375]
[1646570250701,114.7,87.257,87.191,2.83613526]
[1646570250904,5.732,87.256,87.191,2.83613526]
[1646570251102,5.732,87.256,87.192,55.39260726]
[1646570251507,5.732,87.256,87.193,2.83613526]
[1646570251701,5.732,87.262,87.193,2.83613526]
[1646570252102,17.2123,87.25,87.193,2.83613526]
[1646570252303,61.42442655,87.248,87.193,2.83613526]
[1646570257311,5.732,87.247,87.193,2.83613526]
[1646570264120,5.732,87.247,87.193,22.48341901]
[1646570264319,5.732,87.263,87.193,22.48341901]
[1646570264519,5.732,87.277,87.194,22.23755948]
[1646570264721,5.732,87.281,87.194,22.23755948]
[1646570264920,5.732,87.284,87.195,41.88484323]
[1646570265125,3.11954161,87.285,87.196,114.7]
[1646570265321,50.76478235,87.271,87.2,17.2051]
[1646570265922,50.76478235,87.271,87.201,22.48341901]
[1646570266226,50.76478235,87.271,87.202,19.64728375]
[1646570266422,50.76478235,87.271,87.202,22.48341901]
[1646570266619,50.76478235,87.271,87.203,2.83613526]
[1646570267220,114.7,87.27,87.203,2.83613526]
[1646570267420,5.731,87.269,87.203,2.83613526]
[1646570267819,114.7,87.268,87.203,2.83613526]
[1646570268021,5.731,87.267,87.203,2.83613526]
[1646570269523,24.0915,87.269,87.204,19.64728375]
[1646570270024,24.0915,87.269,87.205,2.83613526]
[1646570270224,24.0915,87.269,87.206,63.71361628]
[1646570270445,24.0915,87.269,87.206,83.36090003]
[1646570270625,5.731,87.268,87.207,22.48341901]
[1646570271026,5.731,87.268,87.208,2.83613526]
[1646570271228,5.731,87.268,87.21,17.2034]
[1646570271626,5.731,87.268,87.211,2.83613526]
[1646570272427,24.0915,87.269,87.211,2.83613526]
[1646570276336,5.731,87.268,87.211,2.83613526]
[1646570277439,120.431,87.268,87.211,2.83613526]
[1646570277637,114.7,87.266,87.211,2.83613526]
[1646570277836,12.00067307,87.265,87.211,2.83613526]
[1646570278051,120.96967307,87.264,87.211,2.83613526]
[1646570278254,5.731,87.263,87.211,2.83613526]
[1646570278456,12.00067307,87.263,87.211,2.83613526]
[1646570278852,5.731,87.263,87.211,2.83613526]
[1646570279054,5.731,87.267,87.211,2.83613526]
[1646570279252,6.26980883,87.266,87.211,2.83613526]
[1646570279453,5.731,87.265,87.211,2.83613526]
[1646570279653,6.26980883,87.264,87.211,2.83613526]
[1646570279856,5.731,87.263,87.211,2.83613526]
[1646570280154,6.26980883,87.262,87.211,2.83613526]
[1646570280354,5.731,87.261,87.211,2.83613526]
[1646570280753,5.731,87.267,87.211,2.83613526]
[1646570280961,6.26980049,87.266,87.211,2.83613526]
[1646570281154,5.731,87.265,87.211,2.83613526]
[1646570281355,6.26980049,87.264,87.211,2.83613526]
[1646570281555,5.731,87.263,87.211,2.83613526]
[1646570281754,17.2101,87.26,87.211,2.83613526]
[1646570281955,120.431,87.259,87.2,2.83613526]
[1646570282155,114.7,87.258,87.2,2.83613526]
[1646570282356,5.732,87.257,87.2,2.83613526]
[1646570282558,6.26980049,87.256,87.2,2.83613526]
[1646570282759,5.732,87.255,87.201,64.21381338]
[1646570282959,114.7,87.253,87.2,2.83613526]
[1646570283155,51.90340969,87.256,87.2,2.83613526]
[1646570283156,114.7,87.249,87.2,2.83613526]
[1646570283355,114.7,87.249,87.202,2.83613526]
[1646570283956,114.7,87.249,87.203,45.97994609]
[1646570284156,120.432,87.254,87.203,45.97994609]
[1646570284357,6.27057191,87.253,87.203,48.81608135]
[1646570284559,120.432,87.252,87.203,2.83613526]
[1646570284759,120.432,87.252,87.189,2.83613526]
[1646570284959,117.81954161,87.25,87.189,2.83613526]
[1646570285160,114.7,87.25,87.189,2.83613526]
[1646570285358,114.7,87.248,87.189,2.83613526]
[1646570285559,5.732,87.247,87.19,56.03756493]
[1646570285759,114.7,87.245,87.19,56.03756493]
[1646570285966,17.2142,87.24,87.19,56.03756493]
[1646570286168,163.68677902,87.238,87.19,56.03756493]
[1646570286365,5.732,87.237,87.19,56.03756493]
[1646570286566,5.732,87.237,87.189,2.83613526]
[1646570287368,48.98677902,87.238,87.189,2.83613526]
[1646570287567,48.98677902,87.238,87.19,53.29533856]
[1646570287968,48.98677902,87.238,87.191,2.83613526]
[1646570289372,5.732,87.237,87.191,2.83613526]
[1646570290575,5.62012799,87.237,87.191,2.83613526]
[1646570292376,48.98677902,87.238,87.191,2.83613526]
[1646570292576,48.98677902,87.238,87.192,52.19850397]
[1646570293076,48.98677902,87.238,87.193,2.83613526]
[1646570293676,33.12284161,87.255,87.193,2.83613526]
[1646570293879,6.27116395,87.254,87.193,2.83613526]
[1646570294679,54.03311143,87.253,87.194,19.64728375]
[1646570294881,24.2713,87.255,87.194,25.37928375]
[1646570295080,6.27077176,87.254,87.195,2.83613526]
[1646570295279,24.2713,87.255,87.196,5.732]
[1646570295679,6.27096101,87.254,87.197,2.83613526]
[1646570295880,167.42289183,87.252,87.197,2.83613526]
[1646570296083,114.7,87.25,87.192,52.19850397]
[1646570296382,114.7,87.248,87.186,25.87933526]
[1646570296579,114.7,87.246,87.176,2.83613526]
[1646570296779,114.7,87.244,87.176,2.83613526]
[1646570296979,114.7,87.239,87.164,23.0432]
[1646570297179,4.59475695,87.235,87.158,5.732]
[1646570297382,114.7,87.233,87.159,53.1980853]
[1646570297579,114.7,87.231,87.16,5.734]
[1646570297780,114.7,87.229,87.16,5.734]
[1646570297981,4.35494327,87.218,87.16,5.734]
[1646570298180,115.10063884,87.217,87.155,5.734]
[1646570298379,138.38963884,87.217,87.155,5.734]
[1646570298580,114.7,87.215,87.146,2.83613526]
[1646570298779,114.7,87.213,87.146,2.83613526]
[1646570298981,114.7,87.211,87.147,61.55778116]
[1646570299179,114.7,87.209,87.147,61.55778116]
[1646570299380,114.7,87.207,87.148,2.83613526]
[1646570299980,114.7,87.205,87.148,8.57113526]
[1646570300181,114.7,87.203,87.148,2.83613526]
[1646570300380,114.7,87.201,87.149,2.83613526]
[1646570300580,120.435,87.209,87.149,2.83613526]
[1646570300781,4.64526981,87.208,87.149,2.83613526]
[1646570300980,114.7,87.206,87.149,2.83613526]
[1646570301381,17.222,87.2,87.149,2.83613526]
[1646570301783,5.735,87.199,87.149,2.83613526]
[1646570301984,64.88047447,87.198,87.149,2.83613526]
[1646570302183,5.735,87.197,87.149,2.83613526]
[1646570303283,114.7,87.196,87.149,2.83613526]
[1646570303483,114.7,87.189,87.135,2.83613526]
[1646570303684,114.7,87.187,87.135,2.83613526]
[1646570303883,114.7,87.185,87.135,2.83613526]
[1646570304088,5.736,87.184,87.135,2.83613526]
[1646570304485,59.26643146,87.183,87.136,53.20837559]
[1646570304887,59.26643146,87.183,87.137,2.83613526]
[1646570305689,5.736,87.195,87.137,2.83613526]
[1646570306594,51.62462684,87.194,87.137,2.83613526]
[1646570306793,5.736,87.193,87.137,2.83613526]
[1646570306996,114.7,87.192,87.137,2.83613526]
[1646570307196,114.7,87.19,87.137,2.83613526]
[1646570307395,114.7,87.188,87.137,2.83613526]
[1646570307593,5.736,87.187,87.137,2.83613526]
[1646570307995,5.736,87.187,87.138,50.47948723]
[1646570308596,5.736,87.188,87.138,50.47948723]
[1646570308796,5.736,87.189,87.138,50.47948723]
[1646570309397,51.62462684,87.194,87.139,2.83613526]
[1646570309398,5.736,87.193,87.139,2.83613526]
[1646570309798,114.7,87.192,87.139,2.83613526]
[1646570309998,51.62462684,87.194,87.138,50.47948723]
[1646570310400,24.8152,87.196,87.139,2.83613526]
[1646570310603,24.8152,87.196,87.139,22.48341901]
[1646570310801,24.8152,87.196,87.14,19.64728375]
[1646570311000,5.736,87.226,87.14,19.64728375]
[1646570311200,137.9217,87.225,87.141,26.78193526]
[1646570311402,114.7,87.223,87.141,26.78193526]
[1646570311604,114.7,87.221,87.142,22.48341901]
[1646570311817,114.7,87.219,87.142,22.48341901]
[1646570312017,5.735,87.218,87.143,2.83613526]
[1646570312617,120.435,87.219,87.143,2.83613526]
[1646570312817,5.735,87.219,87.143,2.83613526]
[1646570313018,5.735,87.219,87.143,22.48341901]
[1646570313218,5.735,87.223,87.15,17.2167]
[1646570313717,5.735,87.223,87.151,2.83613526]
[1646570313917,23.2217,87.225,87.151,22.84422614]
[1646570314119,23.2217,87.225,87.152,19.64728375]
[1646570314421,5.734,87.224,87.152,22.48341901]
[1646570314718,5.734,87.224,87.171,54.73019452]
[1646570314719,60.08282204,87.223,87.171,54.73019452]
[1646570314920,5.734,87.222,87.171,54.73019452]
[1646570316119,5.734,87.222,87.154,23.6458]
[1646570316619,114.7,87.219,87.154,23.6458]
[1646570316820,5.734,87.218,87.154,23.6458]
[1646570317021,5.734,87.218,87.155,55.35026881]
[1646570317221,114.7,87.217,87.155,55.35026881]
[1646570318220,17.2183,87.22,87.155,55.35026881]
[1646570318421,17.2183,87.22,87.156,2.83613526]
[1646570318624,114.7,87.219,87.156,2.83613526]
[1646570319221,17.2183,87.22,87.156,2.83613526]
[1646570319626,60.08282204,87.223,87.156,2.83613526]
[1646570319823,6.27385052,87.222,87.156,2.83613526]
[1646570320223,5.734,87.221,87.156,2.83613526]
[1646570320625,5.734,87.222,87.156,2.83613526]
[1646570321438,6.27370515,87.221,87.156,2.83613526]
[1646570321625,6.27370515,87.221,87.156,117.53613526]
[1646570321826,60.08282204,87.223,87.16,17.2146]
[1646570322026,5.734,87.222,87.16,17.2146]
[1646570322227,5.734,87.222,87.161,2.83613526]
[1646570322625,6.27360009,87.221,87.155,55.35026881]
[1646570322824,22.9522,87.22,87.155,55.35026881]
[1646570323027,29.38890009,87.219,87.155,55.35026881]
[1646570323224,5.734,87.218,87.155,55.35026881]
[1646570324030,5.734,87.218,87.152,2.83613526]
[1646570324031,114.7,87.209,87.152,2.83613526]
[1646570324230,12.00891219,87.208,87.136,2.83613526]
[1646570324533,9.3934538,87.207,87.136,2.83613526]
[1646570324732,5.735,87.206,87.136,2.83613526]
[1646570324929,65.30592642,87.205,87.146,59.4423573]
[1646570325130,17.2231,87.2,87.146,59.4423573]
[1646570325329,12.00891219,87.199,87.146,59.4423573]
[1646570325629,6.27391219,87.198,87.146,59.4423573]
[1646570325829,5.735,87.197,87.146,59.4423573]
[1646570326229,5.735,87.199,87.146,59.4423573]
[1646570326429,6.27470074,87.198,87.146,59.4423573]
[1646570326831,6.27470074,87.199,87.146,59.4423573]
[1646570327431,6.27470074,87.199,87.136,2.83613526]
[1646570327432,120.97470074,87.199,87.136,2.83613526]
[1646570327634,17.2258,87.19,87.126,23.9701]
[1646570327832,30.337,87.189,87.128,2.83613526]
[1646570328033,6.27470074,87.188,87.128,2.83613526]
[1646570328234,5.736,87.187,87.128,2.83613526]
[1646570328433,55.84437329,87.186,87.129,51.07714708]
[1646570328633,5.736,87.185,87.129,51.07714708]
[1646570328834,5.736,87.185,87.13,2.83613526]
[1646570331137,55.84437329,87.186,87.13,2.83613526]
[1646570332039,5.736,87.185,87.13,2.83613526]
[1646570332739,6.27578164,87.184,87.13,2.83613526]
[1646570332939,120.436,87.183,87.13,2.83613526]
[1646570333140,5.736,87.183,87.13,2.83613526]
[1646570333341,5.736,87.185,87.13,2.83613526]
[1646570333741,1.56360614,87.17,87.13,2.83613526]
[1646570333940,50.30503185,87.169,87.13,2.83613526]
[1646570334748,1.56360614,87.171,87.13,2.83613526]
[1646570334949,1.56360614,87.171,87.131,19.64728375]
[1646570335146,24.601,87.189,87.131,19.64728375]
[1646570335147,1.56360614,87.173,87.131,19.64728375]
[1646570335345,1.56360614,87.173,87.132,2.83613526]
[1646570335746,1.56360614,87.174,87.132,22.48341901]
[1646570336149,1.56360614,87.174,87.133,2.83613526]
[1646570336348,1.56360614,87.181,87.134,114.7]
[1646570336548,1.56360614,87.195,87.134,174.13016594]
[1646570336749,1.56360614,87.197,87.135,25.2778567]
[1646570336949,1.56360614,87.197,87.136,114.7]
[1646570337149,1.56360614,87.199,87.14,131.9192]
[1646570337350,1.56360614,87.199,87.141,23.1738]
[1646570337749,1.56360614,87.199,87.142,36.9884445]
[1646570337960,1.56360614,87.199,87.142,62.2663012]
[1646570338163,1.56360614,87.2,87.143,36.9884445]
[1646570338461,1.56360614,87.2,87.15,17.2137]
[1646570338861,1.56360614,87.2,87.151,40.97235078]
[1646570339062,1.56360614,87.201,87.151,40.97235078]
[1646570339361,1.56360614,87.202,87.152,2.83613526]
[1646570340165,1.56360614,87.203,87.16,17.2151]
[1646570340363,1.56360614,87.203,87.161,48.54373704]
[1646570340562,1.56360614,87.203,87.161,51.3798723]
[1646570340762,3.11954161,87.228,87.162,2.83613526]
[1646570340763,1.56360614,87.204,87.162,2.83613526]
[1646570343763,1.56360614,87.205,87.162,2.83613526]
[1646570344264,1.56360614,87.205,87.163,5.735]
[1646570344663,1.56360614,87.205,87.164,2.83613526]
[1646570345065,63.92979933,87.212,87.164,2.83613526]
[1646570345066,1.56360614,87.206,87.164,2.83613526]
[1646570346370,63.92979933,87.212,87.164,2.83613526]
[1646570346371,1.56360614,87.207,87.164,2.83613526]
[1646570347073,1.56360614,87.207,87.17,17.2133]
[1646570347474,1.56360614,87.207,87.171,2.83613526]
[1646570347673,1.56360614,87.207,87.171,24.13008568]
[1646570347877,1.56360614,87.213,87.172,21.29395042]
[1646570348075,5.734,87.237,87.172,24.13008568]
[1646570348076,1.56360614,87.214,87.172,24.13008568]
[1646570348273,1.56360614,87.214,87.172,21.29395042]
[1646570348474,1.56360614,87.215,87.173,2.83613526]
[1646570348975,1.56360614,87.216,87.173,2.83613526]
[1646570349175,1.56360614,87.217,87.18,17.2103]
[1646570349375,1.56360614,87.218,87.18,17.2103]
[1646570349576,1.56360614,87.218,87.181,2.83613526]
[1646570351080,1.56360614,87.218,87.19,17.2093]
[1646570351278,1.56360614,87.218,87.191,59.93063278]
[1646570351481,1.56360614,87.218,87.191,62.76676804]
[1646570352280,1.56360614,87.219,87.191,62.76676804]
[1646570352678,1.56360614,87.22,87.191,62.76676804]
[1646570353379,1.56360614,87.221,87.191,62.76676804]
[1646570353979,1.56360614,87.22,87.191,62.76676804]
[1646570354179,1.56360614,87.221,87.191,62.76676804]
[1646570354581,1.56360614,87.22,87.191,62.76676804]
[1646570354780,6.27236243,87.243,87.191,62.76676804]
[1646570354781,1.56360614,87.221,87.191,62.76676804]
[1646570355182,1.56360614,87.222,87.191,62.76676804]
[1646570355583,1.56360614,87.223,87.191,62.76676804]
[1646570356884,1.56360614,87.222,87.191,62.76676804]
[1646570357286,1.56360614,87.222,87.191,59.93063278]
[1646570358386,1.56360614,87.222,87.18,2.83613526]
[1646570358587,1.56360614,87.217,87.18,2.83613526]
[1646570358785,1.56360614,87.216,87.18,2.83613526]
[1646570359185,48.73459209,87.214,87.174,23.7968]
[1646570359388,114.7,87.213,87.17,2.83613526]
[1646570359590,114.7,87.213,87.064,4.82680658]
[1646570359591,1.56360614,87.206,87.153,2.83613526]
[1646570359788,1.56360614,87.195,87.142,23.9646]
[1646570359987,1.56360614,87.192,87.142,23.9646]
[1646570360387,1.56360614,87.192,87.155,49.43837554]
[1646570361392,1.56360614,87.19,87.155,49.43837554]
[1646570361691,1.56360614,87.195,87.155,49.43837554]
[1646570363993,1.56360614,87.194,87.155,49.43837554]
[1646570364213,1.56360614,87.193,87.155,49.43837554]
[1646570364615,1.56360614,87.188,87.155,49.43837554]
[1646570364815,1.56360614,87.187,87.155,49.43837554]
[1646570366917,1.56360614,87.186,87.155,49.43837554]
[1646570367217,1.56360614,87.185,87.155,49.43837554]
[1646570367417,1.56360614,87.186,87.155,49.43837554]
[1646570367818,1.56360614,87.187,87.155,49.43837554]
[1646570368017,1.56360614,87.186,87.155,49.43837554]
[1646570368217,1.56360614,87.187,87.155,49.43837554]
[1646570369020,1.56360614,87.184,87.142,23.9646]
[1646570369221,1.56360614,87.184,87.141,17.4647]
[1646570369421,1.56360614,87.183,87.141,17.4647]
[1646570370025,1.56360614,87.183,87.137,49.11176137]
[1646570370222,1.56360614,87.183,87.135,21.29395042]
[1646570370423,1.56360614,87.184,87.13,2.83613526]
[1646570370622,1.56360614,87.174,87.13,2.83613526]
[1646570370823,1.56360614,87.173,87.13,2.83613526]
[1646570371724,1.56360614,87.173,87.131,21.29395042]
[1646570371923,1.56360614,87.174,87.131,21.29395042]
[1646570372823,1.56360614,87.177,87.131,46.57180712]
[1646570373223,1.56360614,87.177,87.132,21.29395042]
[1646570373423,1.56360614,87.179,87.132,21.29395042]
[1646570373626,1.56360614,87.179,87.133,2.83613526]
[1646570374725,1.56360614,87.179,87.14,17.2189]
[1646570374922,1.56360614,87.181,87.14,17.2189]
[1646570375123,1.56360614,87.182,87.141,2.83613526]
[1646570375523,1.56360614,87.183,87.141,2.83613526]
[1646570375923,1.56360614,87.182,87.134,21.29395042]
[1646570376127,1.56360614,87.182,87.127,2.83613526]
[1646570376128,1.56360614,87.18,87.127,2.83613526]
[1646570376327,1.56360614,87.166,87.127,2.83613526]
[1646570376523,1.56360614,87.166,87.069,112.1]
[1646570376524,1.56360614,87.16,87.111,2.83613526]
[1646570376726,1.56360614,87.154,87.111,2.83613526]
[1646570376924,1.56360614,87.148,87.103,22.44172144]
[1646570377324,1.56360614,87.144,87.103,22.44172144]
[1646570378125,1.56360614,87.141,87.097,79.20361723]
[1646570378525,5.738,87.152,87.097,79.20361723]
[1646570378526,1.56360614,87.147,87.097,79.20361723]
[1646570378725,5.738,87.146,87.116,2.83613526]
[1646570378928,5.738,87.15,87.116,2.83613526]
[1646570379126,1.56360614,87.15,87.105,2.83613526]
[1646570379327,5.738,87.149,87.11,17.2253]
[1646570379528,50.93153191,87.148,87.11,17.2253]
[1646570379727,5.738,87.147,87.105,2.83613526]
[1646570381130,5.738,87.147,87.097,61.81631723]
[1646570381628,50.93153191,87.148,87.097,61.81631723]
[1646570382128,5.738,87.147,87.097,61.81631723]
[1646570383431,5.738,87.147,87.1,17.2273]
[1646570385635,5.738,87.147,87.097,61.81631723]
[1646570385636,5.738,87.147,87.11,17.2252]
[1646570385834,50.93153191,87.148,87.11,17.2252]
[1646570387037,50.93153191,87.148,87.115,17.46703216]
[1646570388640,1.56360614,87.159,87.115,17.46703216]
[1646570389040,1.56360614,87.158,87.115,17.46703216]
[1646570389246,1.56360614,87.158,87.115,0.57373216]
[1646570389446,1.56360614,87.154,87.115,0.57373216]
[1646570389643,58.50319776,87.153,87.115,0.57373216]
[1646570389841,60.0668039,87.153,87.115,0.57373216]
[1646570391542,1.56360614,87.152,87.115,0.57373216]
[1646570391743,1.56360614,87.155,87.115,0.57373216]
[1646570391943,1.56360614,87.156,87.115,0.57373216]
[1646570392844,52.99673123,87.157,87.115,18.11183216]
[1646570393146,1.56360614,87.156,87.115,0.57373216]
[1646570393344,5.738,87.155,87.115,0.57373216]
[1646570393545,1.56360614,87.151,87.115,0.57373216]
[1646570393744,1.56360614,87.148,87.115,0.57373216]
[1646570393944,5.738,87.147,87.115,0.57373216]
[1646570394145,1.56360614,87.146,87.115,0.57373216]
[1646570395246,1.56360614,87.146,87.088,17.4127]
[1646570395447,1.56360614,87.136,87.078,17.0718]
[1646570395646,1.56360614,87.123,87.078,17.0718]
[1646570395847,45.62296495,87.122,87.078,17.0718]
[1646570396246,114.7,87.121,87.078,17.0718]
[1646570396448,114.7,87.119,87.078,17.0718]
[1646570396647,1.56360614,87.115,87.044,22.44172144]
[1646570396950,5.74,87.118,87.044,22.44172144]
[1646570396951,1.56360614,87.112,87.044,22.44172144]
[1646570397348,1.56360614,87.11,87.052,69.96914426]
[1646570397549,1.56360614,87.111,87.052,69.96914426]
[1646570397753,1.56360614,87.115,87.053,22.44172144]
[1646570397968,5.74,87.114,87.053,22.44172144]
[1646570398151,5.74,87.114,87.052,47.52742282]
[1646570398551,114.7,87.113,87.052,47.52742282]
[1646570398752,1.56360614,87.11,87.052,47.52742282]
[1646570398954,5.74,87.109,87.052,2.83613526]
[1646570399156,1.56360614,87.108,87.037,2.83613526]
[1646570399353,17.2419,87.1,87.037,2.83613526]
[1646570399553,5.742,87.099,87.037,2.83613526]
[1646570399951,5.742,87.099,87.044,58.71141076]
[1646570400758,5.742,87.099,87.037,2.83613526]
[1646570400958,17.2438,87.09,87.037,2.83613526]
[1646570401159,5.742,87.089,87.037,2.83613526]
[1646570401359,5.742,87.089,87.024,22.44172144]
[1646570401658,61.41002764,87.087,87.025,47.35163689]
[1646570401860,5.743,87.086,87.025,47.35163689]
[1646570402460,5.743,87.086,87.026,5.743]
[1646570402963,5.743,87.086,87.027,19.46597969]
[1646570403161,5.743,87.086,87.03,17.2418]
[1646570404160,5.743,87.086,87.027,44.74383639]
[1646570404765,5.743,87.086,87.028,41.90770113]
[1646570407081,5.743,87.086,87.028,44.74383639]
[1646570407278,5.743,87.086,87.03,17.2418]
[1646570407678,5.743,87.086,87.031,2.83613526]
[1646570407880,5.743,87.086,87.032,5.743]
[1646570408282,5.743,87.086,87.032,8.57913526]
[1646570408481,5.743,87.086,87.032,2.83613526]
[1646570408684,5.743,87.086,87.04,17.2398]
[1646570408882,24.4504,87.088,87.04,17.2398]
[1646570409082,1.56360614,87.1,87.041,2.83613526]
[1646570409284,1.56360614,87.118,87.041,24.03544828]
[1646570409485,1.56360614,87.12,87.042,43.64103446]
[1646570409686,1.56360614,87.12,87.043,114.7]
[1646570409886,1.56360614,87.12,87.044,5.74]
[1646570410085,1.56360614,87.12,87.05,17.2303]
[1646570410287,1.56360614,87.119,87.051,5.74]
[1646570410486,1.56360614,87.12,87.052,51.56743523]
[1646570410686,1.56360614,87.12,87.053,5.74]
[1646570410888,1.56360614,87.121,87.053,28.18172144]
[1646570411087,1.56360614,87.121,87.053,52.21716972]
[1646570411286,1.56360614,87.121,87.054,24.03544828]
[1646570411487,1.56360614,87.121,87.055,5.74]
[1646570411689,1.56360614,87.115,87.07,17.2334]
[1646570411889,5.74,87.114,87.07,17.2334]
[1646570412294,5.74,87.116,87.071,2.83613526]
[1646570412489,1.56360614,87.117,87.071,2.83613526]
[1646570413491,1.56360614,87.116,87.071,2.83613526]
[1646570413892,1.56360614,87.117,87.071,2.83613526]
[1646570415000,5.74,87.116,87.071,2.83613526]
[1646570415194,5.74,87.117,87.071,2.83613526]
[1646570415598,7.30360614,87.119,87.071,2.83613526]
[1646570415793,5.74,87.119,87.071,2.83613526]
[1646570416493,7.30360614,87.119,87.071,2.83613526]
[1646570417196,1.56360614,87.118,87.071,2.83613526]
[1646570417397,7.30360614,87.117,87.071,2.83613526]
[1646570417596,5.74,87.117,87.071,2.83613526]
[1646570418295,1.56360614,87.12,87.071,2.83613526]
[1646570418296,5.74,87.119,87.071,2.83613526]
[1646570418898,1.56360614,87.12,87.071,2.83613526]
[1646570419096,1.56360614,87.118,87.08,17.2318]
[1646570419496,1.56360614,87.117,87.081,2.83613526]
[1646570419698,1.56360614,87.117,87.082,5.74]
[1646570419902,1.56360614,87.13,87.082,5.74]
[1646570420098,1.56360614,87.141,87.083,63.57976722]
[1646570420297,1.56360614,87.141,87.083,107.22080168]
[1646570420498,1.56360614,87.147,87.084,25.2778567]
[1646570420698,1.56360614,87.146,87.084,46.47716972]
[1646570420898,1.56360614,87.146,87.083,60.74363196]
[1646570420899,1.56360614,87.146,87.085,46.47716972]
[1646570421099,1.56360614,87.144,87.09,17.2286]
[1646570421501,1.56360614,87.144,87.091,161.17716972]
[1646570421700,1.56360614,87.144,87.091,46.47716972]
[1646570421903,1.56360614,87.147,87.092,2.83613526]
[1646570422601,1.56360614,87.147,87.092,46.47716972]
[1646570422802,6.27793311,87.165,87.092,46.47716972]
[1646570422803,1.56360614,87.146,87.092,46.47716972]
[1646570423006,1.56360614,87.146,87.093,2.83613526]
[1646570423302,1.56360614,87.143,87.1,17.2225]
[1646570423703,1.56360614,87.143,87.101,2.83613526]
[1646570423902,5.739,87.164,87.101,2.83613526]
[1646570423903,1.56360614,87.144,87.101,2.83613526]
[1646570424302,1.56360614,87.142,87.101,2.83613526]
[1646570424703,1.56360614,87.146,87.111,47.01110999]